[Event "Slovakian ECo-C Extraliga 2024-25"]
[Site "Slovakia"]
[Date "2025.01.18"]
[Round "3.3"]
[White "Nemeth, Miklos"]
[Black "Gonda, Laszlo"]
[Result "1/2-1/2"]
[Annotator "TA"]
[ECO "C55"]
[WhiteElo "2424"]
[BlackElo "2485"]
[PlyCount "28"]
[EventDate "2024.09.12"]
[EventType "team-tourn"]
[EventCountry "SVK"]
[SourceTitle "playchess.com"]
[Source "ChessBase"]
[SourceQuality "1"]
[TimeControl "5400+30"]

{[%evp 13,28,26,35,14,14,7,18,10,9,10,22,4,10,0,12,11,24]} 1. e4 {[%emt 0:10:52]} e5 {[%emt 0:00:01]} 2. Nf3 {[%emt 0:00:04]} Nc6 {[%emt 0:00:02]} 3. Bc4 {[%emt 0:10:04]} d6 {[%emt 0:00:04]} 4. O-O {[%emt 0:00:03]} Be7 {[%emt 0:00:03]} 5. d4 {[%emt 0:00:03]} Nf6 {[%emt 0:00:05]} 6. dxe5 {[%emt 0:00:05]} Nxe5 {[%emt 0:00:03]} 7. Nxe5 {[%emt 0:00:04]} dxe5 {[%emt 0:00:02]} 8. Qf3 {[%emt 0:00:04] C55: Two Knights: 4 d3, 4 d4 exd4 5 e5 and Max Lange Attack.} O-O {[%emt 0:00:04] The position is equal.} 9. Rd1 {[%emt 0:00:05]} Qe8 {[%emt 0:00:04] [#] And now ...Bg4 would win.} 10. Qe2 $146 {[%emt 0:00:05]} (10. h3 Qa4 11. b3 Qc6 12. Nc3 Be6 13. Nd5 Bd8 14. Bg5 Bxd5 15. exd5 Qc5 16. Qf5 {1-0 Martinez Carnicer,E (1738)-Merin Flores,M (1737) Aragon-chT Preferente Gr II 2018 (9.72)}) 10... Bc5 {[%emt 0:00:08]} 11. h3 {[%emt 0:00:03] Wards off Bg4} h6 {[%emt 0:00:01]} 12. a4 {[%emt 0:00:03]} Be6 {[%emt 0:00:05]} 13. Nc3 {[%emt 0:00:03]} a5 {[%emt 0:00:04]} 14. Bxe6 {[%emt 0:00:04]} Qxe6 {[%emt 0:00:02] Not much happened in this game.   Weighted Error Value: White=0.08 (flawless) /Black=0.04 (flawless)   OK:         	White=3     	Black=2} 1/2-1/2

[Event "Slovakian ECo-C Extraliga 2024-25"]
[Site "Slovakia"]
[Date "2025.01.18"]
[Round "3.3"]
[White "Stachowiak, Kamil"]
[Black "Turcan, Richard"]
[Result "1-0"]
[Annotator "TA"]
[ECO "A37"]
[WhiteElo "2413"]
[BlackElo "2353"]
[PlyCount "63"]
[EventDate "2024.09.12"]
[EventType "team-tourn"]
[EventCountry "SVK"]
[SourceTitle "playchess.com"]
[Source "ChessBase"]
[SourceQuality "1"]
[TimeControl "5400+30"]

{[%evp 19,63,6,-2,0,0,0,15,26,18,-7,0,-10,0,0,-27,-19,-24,-28,-12,-25,35,-3,30,40,89,58,57,42,52,53,61,60,95,104,153,102,84,92,98,41,164,162,573,544,732,726]} 1. Nf3 {[%emt 0:00:03]} c5 {[%emt 0:00:09]} 2. c4 {[%emt 0:00:39]} Nc6 {[%emt 0:00:05]} 3. g3 {[%emt 0:00:37]} g6 {[%emt 0:00:12]} 4. Bg2 {[%emt 0:00:09]} Bg7 {[%emt 0:00:06]} 5. Nc3 {[%emt 0:00:51]} d6 {[%emt 0:00:58]} 6. a3 {[%emt 0:01:18]} a5 {[%emt 0:00:34]} 7. O-O {[%emt 0:01:49]} e5 {[%emt 0:01:06]} 8. d3 {[%emt 0:04:14]} Nge7 {[%emt 0:04:51]} 9. Ne1 {[%emt 0:00:53][%cal Bf3e1,Be1c2,Bc2e3,Be3c4][%mdl 32]} Be6 {[%emt 0:00:45]} 10. Nc2 {[%emt 0:01:54]} d5 {[%emt 0:00:46]} 11. cxd5 {[%emt 0:01:50]} Nxd5 {[%emt 0:00:21]} 12. Ne3 {[%emt 0:02:17]} Nde7 {[%emt 0:01:42]} 13. Nc4 {[%emt 0:05:15]} O-O {[%emt 0:01:55]} 14. f4 {[%emt 0:14:30]} exf4 {[%emt 0:27:45]} 15. Bxf4 {[%emt 0:00:32]} Nf5 {[%emt 0:06:03]} 16. Rb1 {[%emt 0:20:02]} g5 {[%emt 0:05:45]} 17. Bd2 {[%emt 0:05:47]} h6 {[%emt 0:01:48]} 18. Kh1 {[%emt 0:02:15]} Rc8 {[%emt 0:10:22]} 19. Nb5 {[%emt 0:17:21]} Qe7 {[%emt 0:12:59]} (19... b6 $11) 20. Qe1 {[%emt 0:04:46]} Bxc4 {[%emt 0:08:38]} 21. dxc4 {[%emt 0:00:10][%cal Bd3c4,Bc4b5,Bb5b6][%mdl 32]} Nfd4 {[%emt 0:00:23]} (21... Qe6 $14 {deserves consideration.}) 22. e3 {[%emt 0:02:51]} Nxb5 {[%emt 0:04:35]} 23. cxb5 {[%emt 0:01:33]} Na7 {[%emt 0:00:56]} 24. b6 {[%emt 0:02:42]} Nc6 {[%emt 0:01:39]} 25. Bxa5 {[%emt 0:01:21]} Nxa5 {[%emt 0:01:44]} 26. Qxa5 {[%emt 0:00:02]} Rcd8 {[%emt 0:06:04] [#]} (26... Rfd8 $142) 27. Rf5 {[%emt 0:02:24]} (27. a4 $1) 27... Qxe3 {[%emt 0:00:52]} 28. Qxc5 {[%emt 0:00:35]} (28. Rxc5 $2 Rd2 29. Rf5 Rxg2 (29... Rxb2 30. Rxb2 Bxb2 31. Qa7 $11) (29... Bxb2 30. Rbf1 $11) 30. Kxg2 Qe4+ 31. Kh3 Qxb1 $19) 28... Bd4 {[%emt 0:00:45]} 29. Qc7 {[%emt 0:03:37] White is more active.} ({White should try} 29. Qc4 $16) 29... Bxb6 {[%emt 0:00:33]} (29... Qe6 $1 $14 30. Rff1 Qxb6 31. Qxb6 (31. Qxb7 Qxb7 32. Bxb7 Rb8 $11) 31... Bxb6) 30. Qxb7 $18 {[%emt 0:00:15]} Rd2 $2 {[%emt 0:00:33]} (30... Bd4 {is tougher.} 31. Rbf1 Qe6) 31. Rbf1 {[%emt 0:00:25][%cal Rf5f7]} Qe6 {[%emt 0:00:33]} 32. Rf6 {[%emt 0:00:41]} 1-0

[Event "Slovakian ECo-C Extraliga 2024-25"]
[Site "Slovakia"]
[Date "2025.01.18"]
[Round "3.3"]
[White "Stohl, Igor"]
[Black "Ongut, Tamas Gunes"]
[Result "1/2-1/2"]
[Annotator "TA"]
[ECO "A20"]
[WhiteElo "2410"]
[BlackElo "2262"]
[PlyCount "43"]
[EventDate "2024.09.12"]
[EventType "team-tourn"]
[EventCountry "SVK"]
[SourceTitle "playchess.com"]
[Source "ChessBase"]
[SourceQuality "1"]
[TimeControl "5400+30"]

1. c4 {[%emt 0:00:06]} e5 {[%emt 0:00:31]} 2. d3 {[%emt 0:00:22]} Nf6 {[%emt 0:02:14]} 3. Nf3 {[%emt 0:00:29]} Nc6 {[%emt 0:00:20]} 4. a3 {[%emt 0:01:13]} a5 {[%emt 0:06:20]} 5. b3 {[%emt 0:04:53]} g6 {[%emt 0:12:03]} 6. Bb2 {[%emt 0:01:03]} d6 {[%emt 0:00:09]} 7. e3 {[%emt 0:10:04]} Bg7 {[%emt 0:00:11] 7...Ne4 is a critical line. A20: English Opening: 1...e5.} 8. Be2 {[%emt 0:00:09]} O-O {[%emt 0:00:09]} 9. O-O {[%emt 0:00:07]} Re8 {[%emt 0:16:04]} 10. Nc3 {[%emt 0:05:25]} h6 {[%emt 0:13:38]} 11. Rc1 {[%emt 0:08:11]} e4 {[%emt 0:09:28]} 12. Ne1 {[%emt 0:15:57]} Bf5 {[%emt 0:05:20]} 13. Nb5 {[%emt 0:03:17]} Ne5 {[%emt 0:04:59]} 14. dxe4 {[%emt 0:07:37]} Bxe4 {[%emt 0:00:50]} 15. Nd3 {[%emt 0:06:44]} Ned7 {[%emt 0:05:59]} 16. Bf3 {[%emt 0:04:17]} Bxf3 {[%emt 0:01:59]} 17. Qxf3 {[%emt 0:00:05]} Ne4 {[%emt 0:00:53]} 18. Bxg7 {[%emt 0:02:42]} Kxg7 {[%emt 0:02:45]} 19. Rfd1 {[%emt 0:00:16]} c6 {[%emt 0:00:49]} 20. Nc3 {[%emt 0:02:34]} Nxc3 {[%emt 0:00:45]} 21. Rxc3 {[%emt 0:00:03]} Qf6 {[%emt 0:01:01]} 22. Qxf6+ {[%emt 0:00:15]} 1/2-1/2

[Event "Slovakian ECo-C Extraliga 2024-25"]
[Site "Slovakia"]
[Date "2025.01.18"]
[Round "3.3"]
[White "Kusa, Jakub"]
[Black "Rohacek, Miroslav"]
[Result "1-0"]
[Annotator "TA"]
[ECO "A46"]
[WhiteElo "2405"]
[BlackElo "2235"]
[PlyCount "93"]
[EventDate "2024.09.12"]
[EventType "team-tourn"]
[EventCountry "SVK"]
[SourceTitle "playchess.com"]
[Source "ChessBase"]
[SourceQuality "1"]
[TimeControl "5400+30"]

{[%evp 17,93,26,24,0,0,0,0,0,0,0,0,0,0,-4,0,8,10,1,6,3,6,0,0,0,0,0,0,0,23,25,60,54,52,10,5,21,88,78,78,81,81,81,83,65,85,81,136,137,137,127,131,117,137,127,117,117,122,131,125,122,125,131,439,174,6436,6111,1970,1687,5554,5543,29978,29979,29979,29980,29982,29981,29981,29982]} 1. d4 {[%emt 0:00:05]} Nf6 {[%emt 0:00:29]} 2. Nf3 {[%emt 0:00:09]} e6 {[%emt 0:01:22]} 3. c4 {[%emt 0:00:38]} d5 {[%emt 0:01:40]} 4. g3 {[%emt 0:00:23]} Bb4+ {[%emt 0:01:25]} 5. Bd2 {[%emt 0:00:42]} Be7 {[%emt 0:01:32]} 6. Bg2 {[%emt 0:00:10]} O-O {[%emt 0:02:14]} 7. O-O {[%emt 0:00:09]} c6 {[%emt 0:00:37]} 8. Qc2 {[%emt 0:00:21]} a5 {[%emt 0:02:15]} 9. Bf4 {[%emt 0:00:09]} Nbd7 {[%emt 0:02:12]} 10. Nbd2 {[%emt 0:02:38][%cal Bb1d2,Bd2f3,Bf3e5][%mdl 32]} Nh5 {[%emt 0:03:32]} 11. Be3 {[%emt 0:00:32]} b6 {[%emt 0:01:55]} 12. Rfd1 {[%emt 0:04:18]} Ba6 {[%emt 0:02:06]} 13. Ne5 {[%emt 0:06:25]} Rc8 {[%emt 0:02:19]} 14. Rac1 {[%emt 0:00:58]} Nhf6 {[%emt 0:04:34]} 15. Ndf3 {[%emt 0:00:35]} Nxe5 {[%emt 0:15:48]} 16. Nxe5 {[%emt 0:00:15]} Nd7 {[%emt 0:02:03]} 17. cxd5 {[%emt 0:01:12]} cxd5 {[%emt 0:00:57]} 18. Nc6 {[%emt 0:03:09]} Qe8 {[%emt 0:00:18]} 19. Nxe7+ {[%emt 0:05:13]} Qxe7 {[%emt 0:00:09]} 20. Qd2 {[%emt 0:00:06]} Nf6 {[%emt 0:06:06]} 21. f3 {[%emt 0:00:30]} h6 {[%emt 0:03:34]} 22. Kf2 {[%emt 0:02:47]} Qd7 {[%emt 0:01:01]} 23. g4 {[%emt 0:03:14]} Rxc1 {[%emt 0:01:26]} 24. Rxc1 {[%emt 0:00:06]} Rc8 {[%emt 0:00:17]} 25. h4 {[%emt 0:04:15]} Rxc1 {[%emt 0:02:09]} 26. Qxc1 {[%emt 0:00:02]} Qc8 {[%emt 0:03:18]} (26... h5 $11 {keeps the balance.}) 27. Qxc8+ $16 {[%emt 0:00:44]} Bxc8 {[%emt 0:00:07][%mdl 4096] Endgame KBB-KBN} 28. Bf4 {[%emt 0:00:09]} Ne8 {[%emt 0:00:25]} 29. Bb8 {[%emt 0:00:55]} a4 {[%emt 0:14:41]} 30. e3 {[%emt 0:01:55]} Bd7 {[%emt 0:09:06]} 31. Bf1 {[%emt 0:00:47]} Bc6 {[%emt 0:00:16]} (31... g5 $142) 32. Ke1 {[%emt 0:01:48]} g5 {[%emt 0:03:31]} 33. hxg5 {[%emt 0:01:11]} hxg5 {[%emt 0:00:12]} 34. Kd2 {[%emt 0:01:02]} f5 {[%emt 0:00:35]} 35. Be5 $1 {[%emt 0:02:34]} Kf7 {[%emt 0:04:30]} 36. Kc3 $1 {[%emt 0:00:18] White is more active.} Nf6 {[%emt 0:01:04] [#]} 37. Kb4 $1 {[%emt 0:01:15]} fxg4 {[%emt 0:03:00]} 38. Bxf6 {[%emt 0:00:12]} Kxf6 {[%emt 0:00:08]} 39. fxg4 {[%emt 0:00:09] Bb5 would now be deadly. KB-KB} e5 $2 {[%emt 0:00:24][%mdl 8192] [#]} (39... Ke7 $16 40. Bb5 Bb7 41. Kxa4 e5) 40. Bb5 $1 $18 {[%emt 0:01:36]} a3 $2 {[%emt 0:00:19]} (40... Bb7) 41. bxa3 {[%emt 0:06:35]} (41. Bxc6 $2 axb2 42. Bxd5 b1=Q+ $19 (42... b1=B $2 {perishes.} 43. Kb5 $18)) 41... Bb7 {[%emt 0:00:38]} 42. Be2 {[%emt 0:03:16]} Bc6 {[%emt 0:00:23]} 43. a4 {[%emt 0:00:30]} e4 {[%emt 0:03:29]} 44. a5 {[%emt 0:01:08]} bxa5+ {[%emt 0:00:30]} 45. Kxa5 {[%emt 0:00:29]} Ke6 {[%emt 0:02:40]} 46. Bd1 {[%emt 0:00:16]} Kd6 {[%emt 0:01:18]} 47. Kb6 {[%emt 0:00:08]} 1-0

[Event "Slovakian ECo-C Extraliga 2024-25"]
[Site "Slovakia"]
[Date "2025.01.18"]
[Round "3.3"]
[White "Babula, Vlastimil"]
[Black "Bures, Jaroslav"]
[Result "1/2-1/2"]
[Annotator "TA"]
[ECO "B12"]
[WhiteElo "2322"]
[BlackElo "2402"]
[PlyCount "59"]
[EventDate "2024.09.12"]
[EventType "team-tourn"]
[EventCountry "SVK"]
[SourceTitle "playchess.com"]
[Source "ChessBase"]
[SourceQuality "1"]
[TimeControl "5400+30"]

{[%evp 9,59,17,28,20,36,0,0,-1,21,-4,-9,-17,-19,-19,16,5,32,37,23,25,32,24,40,0,0,0,0,0,-15,-8,-20,-115,-102,-79,75,54,56,68,61,61,62,43,41,0,0,0,0,0,0,0,33,35]} 1. e4 {[%emt 0:00:03]} c6 {[%emt 0:00:21]} 2. d4 {[%emt 0:00:20]} d5 {[%emt 0:00:04]} 3. e5 {[%emt 0:00:03]} Bf5 {[%emt 0:00:03]} 4. h4 {[%emt 0:00:06]} h5 {[%emt 0:00:03]} 5. Bd3 {[%emt 0:00:06]} Qd7 {[%emt 0:00:02] Black is weak on the dark squares} 6. Nf3 {[%emt 0:07:38] B12: Caro-Kann: Advance Variation.} Bg4 {[%emt 0:00:04]} 7. O-O $146 {[%emt 0:01:16]} (7. c4 Nh6 8. Bxh6 Rxh6 9. Nc3 e6 10. c5 Qc7 11. Qc2 Bxf3 12. gxf3 a5 13. O-O-O {1-0 McCallum,E (1718)-Kapelinsky,A (1470) GEO World Cup-B U08 2024 (6)}) 7... e6 {[%emt 0:01:32]} 8. Nbd2 {[%emt 0:02:08] The position is equal.} Nh6 {[%emt 0:01:57]} 9. Qe1 {[%emt 0:05:12]} Nf5 {[%emt 0:04:02]} 10. c3 {[%emt 0:11:31]} Be7 {[%emt 0:06:08]} 11. Nh2 {[%emt 0:04:36]} Bxh4 {[%emt 0:02:00]} 12. Nb3 {[%emt 0:05:57]} b6 {[%emt 0:09:34]} 13. g3 {[%emt 0:04:19]} Be7 {[%emt 0:00:47]} 14. Nxg4 {[%emt 0:00:18] White sacrificed a pawn} hxg4 {[%emt 0:00:02]} 15. Qe2 {[%emt 0:00:37]} g6 {[%emt 0:02:03]} 16. Qxg4 {[%emt 0:01:12] A sharp opening} (16. Kg2 $14) 16... c5 $11 {[%emt 0:00:04]} 17. dxc5 {[%emt 0:07:59]} bxc5 {[%emt 0:01:04]} 18. Rd1 {[%emt 0:03:41]} Kf8 {[%emt 0:02:38]} 19. c4 {[%emt 0:04:23]} Nc6 {[%emt 0:00:02][%cal Bb8c6,Bc6e5,Be5f3][%mdl 32]} 20. cxd5 {[%emt 0:03:41]} (20. Be4 $11 d4 (20... Nxe5 21. Qe2 $15) 21. Na5 Nxe5 22. Qf4) 20... Nxe5 $17 {[%emt 0:02:45]} 21. Qe4 {[%emt 0:03:14]} Qxd5 {[%emt 0:02:12] [#]} (21... Nxd3 $17 22. d6 (22. dxe6 Qxe6 23. Qxa8+ Kg7 $11) 22... Nxd6 23. Qxa8+ Kg7) 22. Qxd5 $16 {[%emt 0:00:20] Successful Defense White} exd5 {[%emt 0:00:01]} 23. Bxf5 {[%emt 0:00:10]} gxf5 {[%emt 0:00:04]} 24. Rxd5 {[%emt 0:00:08]} Nf3+ {[%emt 0:00:05]} 25. Kf1 $1 {[%emt 0:04:15][%cal Oc1e3]} c4 {[%emt 0:00:56]} 26. Na5 {[%emt 0:03:28]} f4 {[%emt 0:02:49]} 27. Ke2 {[%emt 0:03:55]} Ng1+ {[%emt 0:00:07]} 28. Kf1 {[%emt 0:00:06]} Nf3 {[%emt 0:00:44]} 29. gxf4 {[%emt 0:05:29]} Rh2 {[%emt 0:00:59]} ({Not} 29... Rh1+ $2 30. Kg2 $18) 30. Ke2 {[%emt 0:08:31] Weighted Error Value: White=0.12 (very precise) /Black=0.15 (very precise)   Mistake:       	White=2     	Black=1      Inaccurate:     	White=2     	Black=3      OK:         	White=12    	Black=11     Best:        	White=2     	Black=2      Strong:       	White=1     	---} 1/2-1/2

[Event "Slovakian ECo-C Extraliga 2024-25"]
[Site "Slovakia"]
[Date "2025.01.18"]
[Round "3.4"]
[White "Berczes, David"]
[Black "Bokros, Albert"]
[Result "1/2-1/2"]
[Annotator "TA"]
[ECO "E17"]
[WhiteElo "2406"]
[BlackElo "2380"]
[PlyCount "34"]
[EventDate "2024.09.12"]
[EventType "team-tourn"]
[EventCountry "SVK"]
[SourceTitle "playchess.com"]
[Source "ChessBase"]
[SourceQuality "1"]
[TimeControl "5400+30"]

{[%evp 12,34,9,20,23,23,40,39,21,22,40,20,24,21,24,8,8,6,13,8,8,-21,-8,-18,-18]} 1. d4 {[%emt 0:11:05]} Nf6 {[%emt 0:00:04]} 2. Nf3 {[%emt 0:01:12]} e6 {[%emt 0:10:37]} 3. c4 {[%emt 0:00:03]} b6 {[%emt 0:00:07]} 4. g3 {[%emt 0:00:03]} Bb7 {[%emt 0:00:03]} 5. Bg2 {[%emt 0:00:03]} Be7 {[%emt 0:00:02]} 6. O-O {[%emt 0:00:05]} O-O {[%emt 0:00:03]} 7. Re1 {[%emt 0:00:03]} a5 {[%emt 0:00:02]} 8. Nc3 {[%emt 0:00:03]} Ne4 {[%emt 0:00:04]} 9. Qc2 $1 {[%emt 0:00:05]} Nxc3 {[%emt 0:00:03] White is slightly better.} 10. bxc3 {[%emt 0:00:04][%cal Of3g5]} d6 {[%emt 0:00:02]} 11. e4 {[%emt 0:00:05]} (11. Ng5 {feels hotter.} Bxg5 12. Bxb7 Ra7 13. Bxg5 Qxg5 14. Bg2) 11... Nd7 {[%emt 0:00:02]} 12. Bf4 {[%emt 0:00:06]} Qc8 {[%emt 0:00:05]} 13. a4 {[%emt 0:00:04]} Re8 {[%emt 0:00:08] The position is equal.} 14. Rad1 {[%emt 0:00:03]} Bf8 {[%emt 0:00:05]} 15. e5 {[%emt 0:00:04]} h6 {[%emt 0:00:02]} 16. d5 {[%emt 0:00:03]} dxe5 {[%emt 0:00:04]} 17. Bxe5 {[%emt 0:00:06]} exd5 {[%emt 0:00:03] Weighted Error Value: White=0.07 (flawless) /Black=0.05 (flawless)   Inaccurate:     	White=1     	---        OK:         	White=4     	Black=5      Strong:       	White=1     	---} 1/2-1/2

[Event "Slovakian ECo-C Extraliga 2024-25"]
[Site "Slovakia"]
[Date "2025.01.18"]
[Round "3.4"]
[White "Zetocha, Claudiu Andrei"]
[Black "Istona, Martin"]
[Result "1/2-1/2"]
[Annotator "TA"]
[ECO "A13"]
[WhiteElo "2294"]
[BlackElo "2218"]
[PlyCount "109"]
[EventDate "2024.09.12"]
[EventType "team-tourn"]
[EventCountry "SVK"]
[SourceTitle "playchess.com"]
[Source "ChessBase"]
[SourceQuality "1"]
[TimeControl "5400+30"]

{[%evp 9,109,24,30,18,32,24,33,27,35,13,16,20,33,9,70,64,60,45,57,58,66,71,75,66,53,52,46,30,40,0,27,0,0,0,85,69,83,77,75,43,70,40,45,47,80,78,82,36,82,38,97,8,6,2,8,0,0,0,14,0,0,0,0,0,4,7,3,13,14,0,2,0,8,0,12,0,0,0,0,0,0,0,3,0,0,0,0,0,0,0,0,0,0,0,0,0,0,0,0,0,0,0]} 1. c4 {[%emt 0:01:13]} Nf6 {[%emt 0:00:08]} 2. g3 {[%emt 0:01:40]} e6 {[%emt 0:00:43]} 3. Bg2 {[%emt 0:00:46]} d5 {[%emt 0:00:13]} 4. Nf3 {[%emt 0:00:36]} a6 {[%emt 0:07:08]} 5. b3 {[%emt 0:04:03]} b6 {[%emt 0:01:16]} 6. O-O {[%emt 0:03:07]} Nbd7 {[%emt 0:02:26]} 7. Bb2 {[%emt 0:07:38]} Bb7 {[%emt 0:00:51]} 8. d3 {[%emt 0:06:37]} Bd6 {[%emt 0:07:43]} 9. Nbd2 {[%emt 0:02:03]} O-O {[%emt 0:16:43]} 10. Qc2 {[%emt 0:02:20]} Re8 {[%emt 0:07:04]} 11. Rfe1 {[%emt 0:05:36]} Rc8 {[%emt 0:26:30]} (11... Bf8 $11) 12. cxd5 $14 {[%emt 0:12:34]} exd5 {[%emt 0:00:15]} 13. Bh3 {[%emt 0:08:30]} Ra8 {[%emt 0:06:24]} 14. e4 {[%emt 0:03:27]} dxe4 $1 {[%emt 0:01:36]} 15. dxe4 {[%emt 0:00:54]} Ne5 {[%emt 0:03:41]} 16. Bxe5 {[%emt 0:09:37]} Bxe5 {[%emt 0:00:14]} 17. Rad1 {[%emt 0:02:23]} Qe7 {[%emt 0:04:17]} 18. Bg2 {[%emt 0:04:26]} Rad8 {[%emt 0:10:41]} 19. Rc1 {[%emt 0:01:32]} c5 {[%emt 0:01:28]} 20. Nc4 {[%emt 0:01:37]} Bc7 {[%emt 0:00:21]} 21. e5 {[%emt 0:01:59][%cal Be4e5,Be5d6][%mdl 32]} Nd7 {[%emt 0:00:28] [#]} (21... Ng4 $11) 22. Nd6 $1 $16 {[%emt 0:09:26]} Bxd6 {[%emt 0:00:43]} 23. exd6 {[%emt 0:00:07]} Qf6 {[%emt 0:00:19] [#]} (23... Qxd6 $2 {is the wrong capture.} 24. Ng5 g6 (24... Rxe1+ $2 25. Rxe1 Nf8 26. Bxb7 $18) 25. Bxb7 $18) 24. Ng5 $1 {[%emt 0:00:51]} Qxg5 {[%emt 0:00:10]} (24... Rxe1+ 25. Rxe1) 25. Bxb7 {[%emt 0:00:09]} Nf6 {[%emt 0:01:05]} 26. Qd3 {[%emt 0:03:04]} Qg6 {[%emt 0:00:30]} 27. Qxa6 {[%emt 0:02:05] White is much more active.} Rxd6 {[%emt 0:00:30]} 28. Rxe8+ {[%emt 0:00:26]} Nxe8 {[%emt 0:00:02] [#]} 29. Qa8 $1 {[%emt 0:00:44][%cal Ra8e8]} Qe6 {[%emt 0:01:00] [#]} 30. Kf1 {[%emt 0:00:54]} ({White should play} 30. b4 $1 $16) 30... Kf8 $11 {[%emt 0:00:26]} 31. Re1 {[%emt 0:01:10]} Qd7 {[%emt 0:00:22]} 32. Ba6 {[%emt 0:02:23]} Qd8 {[%emt 0:00:22]} 33. Qb7 {[%emt 0:00:38]} Qd7 {[%emt 0:00:49]} 34. Qb8 {[%emt 0:00:45][%cal Oe1e8] Black must now prevent Rxe8+!.} (34. Qxd7 {simplifies} Rxd7 35. Bb5 Rd8 36. Bxe8 Rxe8 37. Rxe8+ Kxe8 38. Ke2) 34... Qd8 {[%emt 0:00:17]} 35. Qb7 {[%emt 0:00:30]} Qd7 {[%emt 0:00:21]} 36. Qxd7 {[%emt 0:00:57]} Rxd7 {[%emt 0:00:01][%mdl 4096] Endgame KRB-KRN} 37. Bb5 {[%emt 0:00:08]} Rd8 {[%emt 0:00:20]} 38. Bxe8 {[%emt 0:01:06]} Rxe8 {[%emt 0:00:02] KR-KR} 39. Rd1 {[%emt 0:00:07]} Re6 {[%emt 0:00:38]} 40. Rd7 {[%emt 0:00:24]} h5 {[%emt 0:01:25]} 41. Rb7 {[%emt 0:00:00]} g6 {[%emt 0:00:00]} 42. f4 {[%emt 0:00:00]} Kg7 {[%emt 0:00:00]} 43. Kf2 {[%emt 0:00:00]} Kf6 {[%emt 0:00:00]} 44. a4 {[%emt 0:00:00]} Kg7 {[%emt 0:00:00]} 45. Kf3 {[%emt 0:00:00]} Kf6 {[%emt 0:00:00]} 46. g4 {[%emt 0:00:00]} hxg4+ {[%emt 0:00:00]} 47. Kxg4 {[%emt 0:00:00]} Rd6 {[%emt 0:00:00]} 48. h4 {[%emt 0:00:00]} Kg7 {[%emt 0:00:00]} 49. h5 {[%emt 0:00:00]} gxh5+ {[%emt 0:00:00]} 50. Kxh5 {[%emt 0:00:00]} c4 {[%emt 0:00:00]} 51. bxc4 {[%emt 0:00:00]} Rc6 {[%emt 0:00:00] Repels Rc7} 52. Kg5 {[%emt 0:00:00]} Rxc4 {[%emt 0:00:00]} 53. Rxb6 {[%emt 0:00:00]} Rxa4 {[%emt 0:00:00]} 54. f5 {[%emt 0:00:00]} Ra1 {[%emt 0:00:00]} 55. Rc6 {[%emt 0:00:00]} 1/2-1/2